Cogmind - Beta 15 @@@ ROGUE MODE // 2025.08.14 @ 12:05:53 Player: Ragnakor Result: Destroyed by KL-I78(j) with Overtuned Pulse Rifle Performance ------------- Evolutions (0) 0 Regions Visited (3) 600 Robots Destroyed (2) 10 Value Destroyed (89) 89 Prototype IDs (8) 160 Alien Tech Used (0) 0 Bonus (800) 800 TOTAL SCORE: 1659 Bonus ------- Registered with UFD 300 Met Optimus in HQ 500 Cogmind --------- Core Integrity 0/250 Matter 165/300 Energy 250/250 System Corruption 0% Temperature Warm (195) Movement Core (650) Ox12 Location -7/Scraptown Parts ------- > --- POWER (1) -------- Ion Engine > --- PROPULSION (2) --- (None) > --- UTILITY (2) ------ Large Storage Unit Improved Field Recycling Unit > --- WEAPON (2) ------- (None) > --- INVENTORY (15) --- Light Nuclear Core Fusion Compressor Large Storage Unit Large Storage Unit Visual Processing Unit Signal Interpreter IFF Parser Advanced Terrain Scan Processor Makeshift ECM Suite A0-MCA's Component Scanner EM Pulse Gun CPS Tube (2) CPS Tube (2) Large Botcube Peak State ------------ > --- POWER ------------ Fusion Compressor > --- PROPULSION ------- Wheel Compact Wheel > --- UTILITY ---------- Large Storage Unit Improved Field Recycling Unit > --- WEAPON ----------- Medium Laser Light Assault Rifle > --- INVENTORY -------- Ion Engine Light Nuclear Core Large Storage Unit Large Storage Unit Large Storage Unit Visual Processing Unit Signal Interpreter IFF Parser Makeshift Terrain Scan Processor Advanced Terrain Scan Processor Makeshift ECM Suite EM Pulse Gun CPS Tube CPS Tube [Rating: 17] Favorites ----------- Power Ion Engine Engine Ion Engine Power Core Fusion Compressor Propulsion Compact Wheel Wheel Compact Wheel Utility Large Storage Unit Device Improved Field Recycling Unit Storage Large Storage Unit Weapon Light Assault Rifle Energy Gun Medium Laser Ballistic Gun Light Assault Rifle Build | -11 -10 -10 -7 ------- Run | Yrd Mat Sub Scr Slots Evolved . | . . . . Power . | . . . . Propulsion . | . . . . Utility . | . . . . Weapon . | . . . . Parts Attached 13 | 6 2 1 4 Power 3 | 1 . 1 1 Engine 2 | 1 . 1 . Core 1 | . . . 1 Reactor . | . . . . Propulsion 3 | 2 . . 1 Treads . | . . . . Leg . | . . . . Wheel 3 | 2 . . 1 Hover . | . . . . Flight . | . . . . Utility 5 | 1 2 . 2 Device 2 | . . . 2 Storage 3 | 1 2 . . Processor . | . . . . Hackware . | . . . . Protection . | . . . . Artifact . | . . . . Weapon 2 | 2 . . . Energy Gun 1 | 1 . . . Energy Cannon . | . . . . Ballistic Gun 1 | 1 . . . Ballistic Cannon . | . . . . Launcher . | . . . . Special Weapon . | . . . . Impact Weapon . | . . . . Slashing Weapon . | . . . . Piercing Weapon . | . . . . Special Melee Weapon . | . . . . Unidentified Prototypes . | . . . . Parts Lost 5 | . . 1 4 Power 1 | . . 1 . Propulsion 2 | . . . 2 Utility . | . . . . Weapon 2 | . . . 2 Highest Loss Streak 4 | . . 1 4 To Critical Strikes . | . . . . Average Backups 8 | 1 4 5 10 Power 1 | . 1 . 1 Propulsion . | . . . . Utility 5 | . 2 4 6 Weapon . | . 1 1 1 Tool/Special . | . . . . Unused Backups 12 | . . . 12 Power 1 | . . . 1 Propulsion . | . . . . Utility 8 | . . . 8 Weapon 1 | . . . 1 Tool/Special 2 | . . . 2 Average Slot Usage (%) 99 | . 97 99 99 Engine 12 | . 14 13 12 Core 1 | . . . 1 Wheel 27 | . 28 28 27 Device 8 | . . . 10 Storage 18 | . 25 28 17 Energy Gun 13 | . 14 14 13 Ballistic Gun 13 | . 14 14 13 Peak Build Rating 17 | 6 7 7 17 Average Rating 10 | 4 6 6 12 On Entrance 5 | . 6 7 7 Naked Turns . | . . . . Heaviest Build 48 | 13 48 48 48 Greatest Support 32 | 32 32 32 32 Greatest Overweight (x) 13 | . 1 1 13 Average Overweight (x) . | . . 1 1 Largest Inventory Capacity 15 | 8 15 15 15 Average Capacity 14 | 7 14 15 15 Most Carried 15 | 2 6 6 15 Average Carried 9 | 1 4 5 10 Final Capacity 15 | 8 15 15 15 Final Carried 15 | 2 6 5 15 Class Distribution -------------------- 100% | Mutant Dominant Class ---------------- Mutant | -10/Materials Mutant | -10/Subcaves Mutant | -7/Scraptown Resources | -11 -10 -10 -7 ----------- Run | Yrd Mat Sub Scr Matter Collected 307 | 250 30 17 10 Remotely . | . . . . Salvage Created 110 | . . 40 70 Parts 9 | . . 3 6 Haulers Intercepted . | . . . . Recyclers Shooed . | . . . . Parts Field Recycled 1 | . . . 1 Retrieved Matter 66 | . . . 66 Parts Self-Destructed 6 | . . 6 . Prevented . | . . . . Kills | -11 -10 -10 -7 ------- Run | Yrd Mat Sub Scr Combat Hostiles Destroyed 2 | . . 1 1 Guns 2 | . . 1 1 Classes Destroyed 2 | . . 1 1 Subdweller 1 | . . 1 . Scrapper 1 | . . . 1 Best Kill Streak 1 | . . 1 1 Combat Bots Only 1 | . . 1 1 Max Kills in Single Turn 1 | . . 1 1 Gunslinging . | . . . . Exploded . | . . . . Melee . | . . . . Uniques/NPCs Destroyed . | . . . . Combat | -11 -10 -10 -7 -------- Run | Yrd Mat Sub Scr Hostile Shots Fired 53 | . . 19 34 Missed 14 | . . 6 8 Hits 39 | . . 13 26 Projectile 39 | . . 13 26 Critical Strikes 4 | . . . 4 Part Disruptions 1 | . . . 1 Damage Taken 706 | . . 281 425 Core 267 | . . 136 131 Absorbed by Shields . | . . . . Core Remaining (%) 100 | 100 . . . Volleys Fired 23 | . . 12 11 Largest 2 | . . 2 2 Hottest 70 | . . 70 70 Shots Fired 46 | . . 24 22 Gun 46 | . . 24 22 Cannon . | . . . . Launcher . | . . . . Special . | . . . . Kinetic 23 | . . 12 11 Thermal 23 | . . 12 11 Explosive . | . . . . Electromagnetic . | . . . . Robot Hit Streak 11 | . . 11 3 Robot Miss Streak 2 | . . 1 2 Penetration Max . | . . . . Secondary Targets 1 | . . 1 . Max Gunslinging Chain 1 | . . 1 . Shots Hit Robots 28 | . . 21 7 Core Hits 4 | . . 2 2 Critical Kills . | . . . . Critical Parts Destroyed . | . . . . Critical Strikes . | . . . . Melee Attacks . | . . . . Impact . | . . . . Slashing . | . . . . Piercing . | . . . . Sneak Attacks . | . . . . Combat Hostiles . | . . . . Follow-up Attacks . | . . . . Damage Inflicted 268 | . . 195 73 Guns 268 | . . 195 73 Cannons . | . . . . Explosions . | . . . . Melee . | . . . . Ramming . | . . . . Kinetic 105 | . . 82 23 Thermal 163 | . . 113 50 Explosive . | . . . . Electromagnetic . | . . . . Impact . | . . . . Slashing . | . . . . Piercing . | . . . . Highest Corruption . | . . . . Average Corruption . | . . . . Corruption Purged . | . . . . Corruption Blocked . | . . . . Overload Shots . | . . . . Overflow Damage . | . . . . Projectiles . | . . . . Explosions . | . . . . Melee . | . . . . Knockbacks . | . . . . Impact . | . . . . Kinetic . | . . . . Secondary . | . . . . Self-Inflicted Damage . | . . . . Shots . | . . . . Rammed . | . . . . Targets Rammed . | . . . . Kicked . | . . . . Crushed . | . . . . Highest Temperature 243 | . . 4 243 Average Temperature 95 | . . 1 105 Received Heat Transfer 226 | . . 81 145 Siege Activations . | . . . . Martial Activations . | . . . . Shielding Activations . | . . . . Robots Disrupted . | . . . . Combat Hostiles . | . . . . Robots Corrupted . | . . . . Combat Hostiles . | . . . . Parts Fried . | . . . . Impact Corruptions . | . . . . Robots Melted . | . . . . Combat Hostiles . | . . . . Parts Melted 1 | . . 1 . Heat Transferred 469 | . . 333 136 Parts Sabotaged . | . . . . Parts Stolen . | . . . . Parts Stripped . | . . . . Power Chain Reactions . | . . . . Alert | -11 -10 -10 -7 ------- Run | Yrd Mat Sub Scr Maximum Alert Level . | . . . . Low Security (%) 100 | 100 100 . . Level 1 . | . . . . Level 2 . | . . . . Level 3 . | . . . . Level 4 . | . . . . Level 5 . | . . . . High Security . | . . . . Max Security . | . . . . Peak Influence . | . . . . Initial . | . . . . Average . | . . . . Influence Increases . | . . . . Influence Decreases . | . . . . Squads Dispatched 1 | . 1 . . Investigation . | . . . . Extermination . | . . . . Reinforcement 1 | . 1 . . Assault . | . . . . Garrison . | . . . . Intercept . | . . . . Searches Triggered . | . . . . Construction Impeded . | . . . . Haulers Reinforced . | . . . . Active Scanning Responses . | . . . . Cargo Convoy Interrupts . | . . . . Stealth | -11 -10 -10 -7 --------- Run | Yrd Mat Sub Scr Distress Signals 1 | . 1 . . Communications Jammed . | . . . . Distress Signals . | . . . . Times Spotted 15 | . 4 4 7 Peak Tracking Total 4 | . 2 2 4 Tactical Retreats . | . . . . Traps | -11 -10 -10 -7 ------- Run | Yrd Mat Sub Scr Traps Triggered . | . . . . Indirectly . | . . . . Trap Hack Attempts . | . . . . Triggered . | . . . . Disarmed . | . . . . Reprogrammed . | . . . . Reused . | . . . . Traps Extracted . | . . . . Installed . | . . . . Triggered . | . . . . Machines | -11 -10 -10 -7 ---------- Run | Yrd Mat Sub Scr Machines Disabled . | . . . . Max in Single Turn . | . . . . Machines Repaired . | . . . . Machines Dismantled . | . . . . Machines Sabotaged . | . . . . Overloaded Fab Kills . | . . . . Hacking | -11 -10 -10 -7 --------- Run | Yrd Mat Sub Scr Machines Accessed 8 | . . . 8 Terminals . | . . . . Fabricators . | . . . . Repair Stations . | . . . . Recycling Units . | . . . . Scanalyzers . | . . . . Garrison Access . | . . . . Total Hacks 35 | . . . 35 Successful 35 | . . . 35 Failed . | . . . . Catastrophic . | . . . . Database Lockouts . | . . . . Manual . | . . . . Terminals . | . . . . Fabricators . | . . . . Repair Stations . | . . . . Recycling Units . | . . . . Scanalyzers . | . . . . Garrison Access . | . . . . Terminal Hacks 35 | . . . 35 Record 34 | . . . 34 Proto ID Catalog 1 | . . . 1 Fabricator Hacks . | . . . . Repair Station Hacks . | . . . . Recycling Unit Hacks . | . . . . Scanalyzer . | . . . . Garrison Access Hacks . | . . . . Unauthorized Hacks . | . . . . Terminals . | . . . . Fabricators . | . . . . Repair Stations . | . . . . Recycling Units . | . . . . Scanalyzers . | . . . . Garrison Access . | . . . . Data Cores Recovered . | . . . . Used . | . . . . Hacking Detections . | . . . . Full Trace Events . | . . . . Feedback Events . | . . . . Feedback Blocked . | . . . . Robot Schematics Acquired . | . . . . Robots Built . | . . . . Authchips . | . . . . Time . | . . . . Total Robot Build Rating . | . . . . Part Schematics Acquired . | . . . . Parts Built . | . . . . Authchips . | . . . . Time . | . . . . Total Part Build Rating . | . . . . Parts Repaired . | . . . . Time . | . . . . Parts Recycled . | . . . . Recycled Matter . | . . . . Retrieved Matter . | . . . . Retrieved Components . | . . . . Parts Scanalyzed . | . . . . Part Schematics Acquired . | . . . . Parts Damaged . | . . . . Bothacking | -11 -10 -10 -7 ------------ Run | Yrd Mat Sub Scr Used RIF Installer . | . . . . Robots Hacked . | . . . . Non-combat . | . . . . Combat . | . . . . Robot Hacks Applied . | . . . . Relay Couplers Released . | . . . . Fabnet Peak Effective % . | . . . . Robots Rewired . | . . . . Allies Hacked . | . . . . Hacks Repelled . | . . . . Allies | -11 -10 -10 -7 -------- Run | Yrd Mat Sub Scr Total Allies . | . . . . Largest Group . | . . . . Highest-Rated Group . | . . . . Highest-Rated Ally . | . . . . Total Orders . | . . . . Ally Attacks . | . . . . Total Damage . | . . . . Kills . | . . . . Allies Corrupted . | . . . . Allies Melted 3 | . . . 3 Intel | -11 -10 -10 -7 ------- Run | Yrd Mat Sub Scr Active Infowar (turns) 621 | . . . 621 ECM 621 | . . . 621 Robot Analysis Total . | . . . . Derelict Logs Recovered . | . . . . Drone Launches . | . . . . Drone Recoveries . | . . . . Exploration | -11 -10 -10 -7 ------------- Run | Yrd Mat Sub Scr Turns Passed 2179 | 65 142 243 1729 Spaces Moved 1868 | 56 121 175 1516 Core 6 | 4 . . 2 Treads . | . . . . Legs . | . . . . Wheels 1862 | 52 121 175 1514 Hover . | . . . . Flight . | . . . . Fastest Speed 50 | 50 100 115 105 Average Speed 110 | 96 112 115 110 Slowest Speed 700 | 100 115 115 700 Overloaded Moves . | . . . . Propulsion Burnouts . | . . . . Robots Hopped . | . . . . Potential Cave-ins . | . . . . Cave-ins Triggered . | . . . . Exploration Rate (%) 36 | 4 32 21 88 Regions Visited 3 Branch Regions 2 Pre-discovered Areas . | . . . . Known Exits Taken . | . . . . Unknown Exits Taken 3 | 1 1 1 . Scrap Searched 3 | . . . 3 Spaces Dug . | . . . . Terrain Destroyed . | . . . . Melee . | . . . . Projectile . | . . . . AOE . | . . . . Terrain Rammed . | . . . . Walls Destroyed . | . . . . Machines Disabled . | . . . . Actions | -11 -10 -10 -7 --------- Run | Yrd Mat Sub Scr Total 1938 | 64 125 195 1554 Wait 9 | . . 8 1 Move 1865 | 55 120 174 1516 Hop . | . . . . Pick Up 19 | 3 3 . 13 Fast Attach 6 | 5 1 . . Attach 7 | 1 . 1 5 Detach 4 | . . . 4 Swap 1 | . 1 . . Drop 4 | . . . 4 Fire 23 | . . 12 11 Melee . | . . . . Ram . | . . . . Kick . | . . . . Crush . | . . . . Escape Stasis . | . . . . Rewire . | . . . . Trap . | . . . . Miscellaneous . | . . . . Route ------- -11/Scrapyard -10/Materials (discovered 3 exits: [*Mat] / [*Min] / [*Sub]) -10/Subcaves (discovered 2 exits: [*Mat] / *Scr) -7/Scraptown (discovered 2 exits: *Fac x2) History --------- Turn | Location | Event 13 | -11/Scrapyard | Discovered new exit (range 16) 66 | -11/Scrapyard | Entered Materials 67 | -10/Materials | Met a group of wandering Federalists 78 | -10/Materials | Discovered new exit (range 14) 134 | -10/Materials | Discovered new exit (range 10) 205 | -10/Materials | Discovered new exit (range 3) 208 | -10/Materials | Entered Subcaves 208 | -10/Subcaves | Accompanied by 1 ally 209 | -10/Subcaves | Continued accompanying wandering Federalists (3) 209 | -10/Subcaves | Approached by a straggling Scientist 310 | -10/Subcaves | Core integrity fell below 50% 334 | -10/Subcaves | Build established: Mutant 375 | -10/Subcaves | Discovered new exit (range 15) 437 | -10/Subcaves | Wandering Federalist uncovered a shortcut to Scraptown 451 | -10/Subcaves | Entered Scraptown 614 | -7/Scraptown | Visited Shadow of the Wyrm 641 | -7/Scraptown | Visited Cyclists 779 | -7/Scraptown | Discovered new exit (range 5) 921 | -7/Scraptown | Visited Cave Peace 969 | -7/Scraptown | Visited SPCMW 1006 | -7/Scraptown | Visited UFD Registry 1006 | -7/Scraptown | Registered with UFD as "Metaglider" 1028 | -7/Scraptown | Heard Great Nut preacher, LISTEN AND RECITE! 1565 | -7/Scraptown | Visited A0-MCA Data Center 1571 | -7/Scraptown | Given a C+ rating by A0-MCA 1575 | -7/Scraptown | Found A0-MCA's Component Scanner 1630 | -7/Scraptown | Visited Curators Association 1685 | -7/Scraptown | Visited Botcube Research 1697 | -7/Scraptown | Found Lrg. Botcube 1737 | -7/Scraptown | Visited Derelict Rescue Squad 1770 | -7/Scraptown | Visited Science Guys 1823 | -7/Scraptown | Visited Abandonware Association 1858 | -7/Scraptown | Learned abandonware demo "REPAIR.EXE" 1893 | -7/Scraptown | Visited Research Penetration Think Tank 1935 | -7/Scraptown | Met Optimus 1935 | -7/Scraptown | Accepted into 0bPrime 2019 | -7/Scraptown | Visited Junk Repository 2099 | -7/Scraptown | Civil war broke out across Scraptown 2138 | -7/Scraptown | Visited Observation Area 2174 | -7/Scraptown | Core integrity fell below 20% 2176 | -7/Scraptown | Identified exit to Factory 2178 | -7/Scraptown | Lost 3 allies 2180 | -7/Scraptown | Destroyed by KL-I78(j) with Overtuned Pulse Rifle Last Messages --------------- 02109_ Machine disabled. 02109_ KTG-V3 destroyed. 02147_ VH-JX1(j) destroyed. 02154_ Slug penetrates Machine. 02154_ Machine disabled. 02154_ Slug penetrates Wall. 02157_ Slug penetrates Machine. 02167_ Wheel destroyed. 02167_ Critical hit (Burn: +50). 02167_ Machine disabled. 02170_ Com. Wheel destroyed. 02171_ Med. Laser destroyed. 02176_ Lgt. Assault Rifle destroyed. 02176_ Machine disabled. Optimus: You really should get out of here Metaglider. Scraptown is unimportant, the mission is important. Take the northeast exit, it's probably the safer route. Loading 1 Scraptown exit... 02178_ Slug penetrates 6G-1B4(g). Map ----- +----------------------------------------------------+ | "## ""#????? | | "## """" "#????? | | "## "### "#????? | | "## "#X ""#????? | | "### "#????? | | """"""""""""""""""""""""""" "## """" "#????? | | """"""""""""""""""""""""""" "## ""#????? | | "###### ################"" "## "#????? | | "# ##????????#"" "############????? | | "# X"#????????#"" "##"""""""#??????? | | "# "" "" ##????????#"" "## """"""#??????? | | "# "" "" X"#??????###"" "## ""#??????? | | "# " " ######### #"" "## ""#??????? | | " "" =!% ""#??????? | | " "" [=* ## "#??????? | | "# " " ######### #"" =[ ## ""#??????? | | "# "" "" ""#??????###"" jg "## " """"#??????? | | "# "" "" ##????????#"" "##########??????? | | "# X"#????????#" ## [#????????? | | "# ##????????#"" "## /#????????? | | "###### ################"" !"## ####????????? | | """"""""""""""""""""""""""" =!["##= /[#????????? | | """"""""""""""""""""""""""" *===!%!! !!#????????? | | p !%! ## *#????????? | | j = ## ####????????? | | @ ;# !!#????????? | | = !## ![#????????? | | %!!%#######????????? | | """"""""""" """""""""" """ " !=%##??????????????? | | ########### ########### #####;3=!=#??????????????? | | #?# #?????""""???; ##??????????????? | | """#?# ""#???? ???# #???????????????? | | """#?#" "#???? ??# #???????????????? | | "!"#?#" """"" "#??? """"?# #???????????????? | | """#?#" ????" "#?? #####??# #???????????????? | | """#?#"?????" "#?? ???????# ############????? | | """"#?#"?????" "#??" ???????# #????? | | """"#?#" ????" "#???""???????# ##????? | | """"#?#" """"" "#????????????# #????? | | """"#?#" "#????????????# #????? | | ###???#"""" """"#????????????# #????? | | ??????####"######????????????# ############????? | | #########"#####??????######### #####???????????? | | #"""##"" ##"""##"""##"""##"|"# """"#???????????? | | # ""## "##" "##"""##"" ##" # "" "#???????????? | | "#???????????? | | % " "#???????????? | | """"#???????????? | | #"""##"""##""|##"|"##!!$##"" ## ######???????????? | | #"""##"""##"""##"""##"""##"""####????????????????? | +----------------------------------------------------+ Best States ------------- Heat Dissipation 25 Energy Generation 25 Energy Capacity 250 Matter Stores 300 Matter Capacity 300 Sight Range 16 Terrain Scan Density 10 ECM Strength 2 Evasion (%) 40 Item Schematics ----------------- None Robot Schematics ------------------ None Fabricated ------------ Nothing Repaired ---------- Nothing Alien Tech Used ----------------- None Achievements -------------- Librarian Challenges ------------ None Game ------ Seed PortableMolecularStatue Manual? 0 Play Time 00:34:27 Cumulative 2.9 hours Start 2025.08.14 @ 11:29:02 End 2025.08.14 @ 12:05:53 Sessions 1 Manual Loads 0 Difficulty Rogue Special Mode None Game No. 6 Rogue 6 Adventurer 0 Explorer 0 Win Type - Total 0 Types 0/0/0/0/0/0/0/0/0/0 Lore% 7 Gallery% 6 Achievement% 7 Wizard Run 0 Options --------- Layout 1 ASCII 0 Keyboard 0 Movement Numpad Keybinds 0 Fullscreen 1 Font 24/Smallcaps Map View 50x35 Zoom Use 0% Tactical HUD 1 Map Filters NONE Filters NONE Steam 1 RUN: 6f9c50be-c8b0-46f1-b28d-d0f450d9bf85